bitfinex-derivatives/quotes_BTCF0:USTF0_20230101
["timestamp","ask_amount","ask_price","bid_price","bid_amount"]
[1672576768983,0.091,16576.0,16575.0,0.00614464]
[1672576784962,0.091,16576.0,16575.0,0.00593926]
[1672576789068,0.3917,16576.0,16575.0,0.00593926]
[1672576790010,0.3917,16576.0,16575.0,0.00534534]
[1672576791378,0.091,16576.0,16575.0,0.00534534]
[1672576791589,0.3917,16576.0,16575.0,0.00534534]
[1672576791802,0.3917,16576.0,16575.0,0.00481081]
[1672576792009,0.091,16576.0,16575.0,0.00481081]
[1672576792424,0.3917,16576.0,16575.0,0.00481081]
[1672576793891,0.3917,16576.0,16575.0,0.00432973]
[1672576796007,0.3917,16576.0,16575.0,0.00389676]
[1672576798828,0.091,16576.0,16575.0,0.00389676]
[1672576799044,0.3917,16576.0,16575.0,0.00389676]
[1672576804728,0.091,16576.0,16575.0,0.00389676]
[1672576804939,0.3917,16576.0,16575.0,0.00350709]
[1672576806832,0.3917,16576.0,16575.0,0.00315639]
[1672576808089,0.091,16576.0,16575.0,0.00315639]
[1672576808415,0.3917,16576.0,16575.0,0.00315639]
[1672576808946,0.3917,16576.0,16575.0,0.00284076]
[1672576810934,0.3917,16576.0,16575.0,0.00255669]
[1672576819338,0.091,16576.0,16575.0,0.00255669]
[1672576819549,0.3917,16576.0,16575.0,0.00255669]
[1672576819764,0.3917,16576.0,16575.0,0.00230103]
[1672576821761,0.3917,16576.0,16575.0,0.00207093]
[1672576822604,0.091,16576.0,16575.0,0.00207093]
[1672576823019,0.3917,16576.0,16575.0,0.00207093]
[1672576823968,0.3917,16576.0,16575.0,0.00186384]
[1672576826079,0.3917,16576.0,16575.0,0.00167746]
[1672576827866,0.3917,16576.0,16575.0,0.00150972]
[1672576829860,0.3917,16576.0,16575.0,0.00135875]
[1672576831964,0.3917,16576.0,16575.0,0.00122288]
[1672576833966,0.3917,16576.0,16575.0,0.0011006]
[1672576835956,0.3917,16576.0,16575.0,0.00099055]
[1672576837644,0.091,16576.0,16575.0,0.00099055]
[1672576837855,0.3917,16576.0,16575.0,0.00099055]
[1672576838067,0.3917,16576.0,16575.0,0.0008915]
[1672576838597,0.091,16576.0,16575.0,0.0008915]
[1672576839017,0.3917,16576.0,16575.0,0.0008915]
[1672576839953,0.3917,16576.0,16575.0,0.00080236]
[1672576841958,0.3917,16576.0,16575.0,0.00072213]
[1672576844268,0.3917,16576.0,16575.0,0.00064992]
[1672576846156,0.3917,16576.0,16575.0,0.00058493]
[1672576848057,0.3917,16576.0,16575.0,0.00052493]
[1672576848786,0.091,16576.0,16575.0,0.00052493]
[1672576849004,0.3917,16576.0,16575.0,0.00052493]
[1672576850156,0.3917,16576.0,16575.0,0.00046493]
[1672576852247,0.3917,16576.0,16575.0,0.00040493]
[1672576854138,0.3917,16576.0,16575.0,0.00034493]
[1672576856241,0.091,16576.0,16575.0,0.00028493]
[1672576856559,0.3917,16576.0,16575.0,0.00028493]
[1672576859501,0.091,16576.0,16575.0,0.00028493]
[1672576859918,0.3917,16576.0,16575.0,0.00028493]
[1672576862236,0.091,16576.0,16575.0,0.00028493]
[1672576862548,0.3917,16576.0,16575.0,0.00028493]
[1672576862762,0.091,16576.0,16575.0,0.00028493]
[1672576862972,0.3917,16576.0,16575.0,0.00028493]
[1672576864652,0.091,16576.0,16575.0,0.00028493]
[1672576865066,0.3917,16576.0,16575.0,0.00028493]
[1672576868744,0.091,16576.0,16575.0,0.00028493]
[1672576868954,0.3917,16576.0,16575.0,0.00028493]
[1672576869374,0.091,16576.0,16575.0,0.00028493]
[1672576869585,0.3917,16576.0,16575.0,0.00028493]
[1672576870748,0.091,16576.0,16575.0,0.00028493]
[1672576870960,0.3917,16576.0,16575.0,0.00028493]
[1672576872325,0.3917,16576.0,16575.0,0.00022493]
[1672576874014,0.091,16576.0,16575.0,0.00022493]
[1672576874223,0.3917,16576.0,16575.0,0.00022493]
[1672576874634,0.3917,16576.0,16575.0,0.00016493]
[1672576876420,0.3917,16576.0,16575.0,0.00010493]
[1672576876843,0.091,16576.0,16575.0,0.00010493]
[1672576877051,0.3917,16576.0,16575.0,0.00010493]
[1672576878531,0.3917,16576.0,16575.0,4.493e-05]
[1672576884622,0.091,16576.0,16575.0,4.493e-05]
[1672576884820,0.3917,16576.0,16575.0,4.493e-05]
[1672576887462,1.507e-05,16574.0,16573.0,0.3507]
[1672576887778,1.507e-05,16574.0,16573.0,0.05]
[1672576887995,1.507e-05,16574.0,16573.0,0.3507]
[1672576888513,0.00401507,16574.0,16573.0,0.4507]
[1672576888828,0.00401507,16574.0,16573.0,0.15]
[1672576889453,0.00401507,16574.0,16573.0,0.4507]
[1672576890830,0.00401507,16574.0,16573.0,0.15]
[1672576891028,0.00401507,16574.0,16573.0,0.4507]
[1672576895870,0.00401507,16574.0,16573.0,0.15]
[1672576896187,0.00401507,16574.0,16573.0,0.4507]
[1672576898384,0.00401507,16574.0,16573.0,0.15]
[1672576935077,0.00401507,16574.0,16573.0,0.14985969]
[1672576976789,0.004,16574.0,16573.0,0.14985969]
[1672576986142,0.004,16574.0,16573.0,0.14973725]
[1672577022403,0.004,16574.0,16573.0,0.45043725]
[1672577023142,0.004,16574.0,16573.0,0.14973725]
[1672577037011,0.004,16574.0,16573.0,0.14955141]
[1672577091056,0.004,16574.0,16573.0,0.14936553]
[1672577110932,0.004,16574.0,16573.0,0.1]
[1672577114494,0.004,16574.0,16573.0,0.4007]
[1672577116285,0.95199435,16577.0,16574.0,0.05]
[1672577116599,0.95199435,16577.0,16575.0,0.3007]
[1672577116802,0.95199435,16577.0,16576.0,0.05]
[1672577118812,0.3007,16579.0,16576.0,0.05]
[1672577119022,0.05,16578.0,16576.0,0.058]
[1672577119333,0.05,16578.0,16576.0,0.05]
[1672577119545,0.05,16578.0,16576.0,0.054]
[1672577119953,0.05,16578.0,16576.0,0.3547]
[1672577120478,0.05,16579.0,16576.0,0.3547]
[1672577122898,0.05,16579.0,16576.0,0.05]
[1672577123114,0.05,16579.0,16576.0,0.3507]
[1672577127109,0.3507,16579.0,16576.0,0.3507]
[1672577131104,0.05,16579.0,16576.0,0.3507]
[1672577140140,0.3507,16579.0,16576.0,0.3507]
[1672577143815,0.3007,16578.0,16576.0,0.05]
[1672577144868,0.05,16577.0,16576.0,0.05]
[1672577145076,0.05,16577.0,16576.0,0.088]
[1672577146464,0.05,16577.0,16576.0,0.054]
[1672577146971,0.05,16577.0,16576.0,0.058]
[1672577148966,0.04986273,16577.0,16576.0,0.058]
[1672577152325,0.04986273,16577.0,16576.0,0.054]
[1672577152745,0.04986273,16577.0,16576.0,0.05]
[1672577152957,0.04986273,16577.0,16576.0,0.059]
[1672577153166,0.04986273,16577.0,16576.0,0.05]
[1672577153379,0.04986273,16577.0,16576.0,0.059]
[1672577165046,0.3007,16578.0,16576.0,0.059]
[1672577165572,0.3007,16578.0,16576.0,0.05]
[1672577165890,0.3007,16578.0,16576.0,0.059]
[1672577166102,0.3007,16578.0,16576.0,0.06]
[1672577166321,0.05,16577.0,16576.0,0.06]
[1672577166941,0.05,16579.0,16576.0,0.06]
[1672577167991,0.3507,16579.0,16576.0,0.3607]
[1672577168416,0.3507,16579.0,16576.0,0.3597]
[1672577168827,0.3507,16579.0,16576.0,0.3507]
[1672577169037,0.3507,16579.0,16576.0,0.3617]
[1672577172723,0.05,16579.0,16576.0,0.3617]
[1672577181868,0.05,16579.0,16576.0,0.061]
[1672577182078,0.3507,16579.0,16576.0,0.3617]
[1672577182809,0.05,16579.0,16576.0,0.3617]
[1672577183031,0.3507,16579.0,16576.0,0.3617]
[1672577184814,0.05,16579.0,16576.0,0.061]
[1672577185022,0.3507,16579.0,16576.0,0.3617]
[1672577186697,0.05,16579.0,16576.0,0.061]
[1672577186921,0.05,16579.0,16576.0,0.3617]
[1672577186922,0.3507,16579.0,16576.0,0.3617]
[1672577188706,0.05,16579.0,16576.0,0.061]
[1672577189025,0.3507,16579.0,16576.0,0.3617]
[1672577189442,0.05,16579.0,16576.0,0.061]
[1672577189656,0.3507,16579.0,16576.0,0.3617]
[1672577193646,0.05,16579.0,16576.0,0.061]
[1672577194069,0.3507,16579.0,16576.0,0.3617]
[1672577194386,0.05,16579.0,16576.0,0.061]
[1672577194596,0.3507,16579.0,16576.0,0.3617]
[1672577194807,0.05,16579.0,16576.0,0.061]
[1672577195332,0.3507,16579.0,16576.0,0.3617]
[1672577200280,0.3507,16579.0,16576.0,0.36146479]
[1672577202587,0.05,16579.0,16576.0,0.06076479]
[1672577202800,0.05,16579.0,16576.0,0.36146479]
[1672577204683,0.05,16579.0,16576.0,0.06076479]
[1672577205115,0.05,16579.0,16576.0,0.36146479]
[1672577205319,0.05,16579.0,16576.0,0.06076479]
[1672577205529,0.05,16579.0,16576.0,0.36146479]
[1672577206684,0.05,16579.0,16576.0,0.06076479]
[1672577206905,0.05,16579.0,16576.0,0.36146479]
[1672577207628,0.05,16579.0,16576.0,0.06076479]
[1672577207853,0.05,16579.0,16576.0,0.36146479]
[1672577210888,0.05,16579.0,16576.0,0.06076479]
[1672577211108,0.05,16579.0,16576.0,0.36146479]
[1672577217413,0.05,16579.0,16576.0,0.06076479]
[1672577217932,0.05,16579.0,16576.0,0.36146479]
[1672577219720,0.05,16579.0,16576.0,0.06076479]
[1672577219933,0.05,16579.0,16576.0,0.36146479]
[1672577225715,0.05,16579.0,16576.0,0.06076479]
[1672577226031,0.05,16579.0,16576.0,0.36146479]
[1672577227816,0.05,16579.0,16576.0,0.06076479]
[1672577228027,0.05,16579.0,16576.0,0.36146479]
[1672577228877,0.05,16579.0,16576.0,0.06076479]
[1672577229076,0.05,16579.0,16576.0,0.36146479]
[1672577230020,0.05,16579.0,16576.0,0.06076479]
[1672577230240,0.3507,16579.0,16576.0,0.36146479]
[1672577230653,0.05,16579.0,16576.0,0.06076479]
[1672577230864,0.3507,16579.0,16576.0,0.36146479]
[1672577231068,0.05,16579.0,16576.0,0.06076479]
[1672577231280,0.3507,16579.0,16576.0,0.36146479]
[1672577233384,0.05,16579.0,16576.0,0.06076479]
[1672577233610,0.3507,16579.0,16576.0,0.36146479]
[1672577244324,0.05,16579.0,16576.0,0.36146479]
[1672577246331,0.05,16579.0,16576.0,0.06076479]
[1672577246647,0.05,16579.0,16576.0,0.36146479]
[1672577249889,0.05,16579.0,16576.0,0.06076479]
[1672577250529,0.05,16579.0,16576.0,0.36146479]
[1672577250742,0.05,16579.0,16576.0,0.06076479]
[1672577250943,0.05,16579.0,16576.0,0.36146479]
[1672577251150,0.05,16579.0,16576.0,0.06076479]
[1672577251579,0.05,16579.0,16576.0,0.36146479]
[1672577253888,0.05,16579.0,16576.0,0.3614033]
[1672577255888,0.3507,16579.0,16576.0,0.3614033]
[1672577258090,0.05,16579.0,16576.0,0.3614033]
[1672577258305,0.3507,16579.0,16576.0,0.3614033]
[1672577262718,0.05,16579.0,16576.0,0.0607033]
[1672577262929,0.3507,16579.0,16576.0,0.0607033]
[1672577264824,0.05,16579.0,16576.0,0.0607033]
[1672577265033,0.3507,16579.0,16576.0,0.0607033]
[1672577265245,0.3507,16579.0,16576.0,0.3614033]
[1672577266394,0.05,16579.0,16576.0,0.0607033]
[1672577266603,0.3507,16579.0,16576.0,0.3614033]
[1672577273859,0.05,16579.0,16576.0,0.3614033]
[1672577274073,0.3507,16579.0,16576.0,0.3614033]
[1672577274913,0.05,16579.0,16576.0,0.0607033]
[1672577275124,0.3507,16579.0,16576.0,0.3614033]
[1672577275648,0.05,16579.0,16576.0,0.0607033]
[1672577275858,0.3507,16579.0,16576.0,0.3614033]
[1672577279745,0.05,16579.0,16576.0,0.3614033]
[1672577280691,0.05,16579.0,16576.0,0.0607033]
[1672577281007,0.05,16579.0,16576.0,0.3614033]
[1672577281419,0.05,16579.0,16576.0,0.0607033]
[1672577281634,0.05,16579.0,16576.0,0.3614033]
[1672577288162,0.3507,16579.0,16576.0,0.3614033]
[1672577288468,0.3507,16579.0,16576.0,0.3504033]
[1672577288778,0.05,16579.0,16576.0,0.3614033]
[1672577288996,0.3507,16579.0,16576.0,0.3614033]
[1672577289939,0.05,16579.0,16576.0,0.0607033]
[1672577290147,0.3507,16579.0,16576.0,0.3614033]
[1672577295301,0.05,16579.0,16576.0,0.0607033]
[1672577295514,0.3507,16579.0,16576.0,0.3614033]
[1672577295934,0.05,16579.0,16576.0,0.0607033]
[1672577296145,0.3507,16579.0,16576.0,0.3614033]
[1672577296783,0.3507,16579.0,16576.0,0.0607033]
[1672577298675,0.3007,16578.0,16576.0,0.0607033]
[1672577299713,0.3007,16578.0,16576.0,0.0497033]
[1672577299925,0.3007,16578.0,16576.0,0.0597033]
[1672577300348,0.05,16579.0,16576.0,0.0597033]
[1672577300563,0.3007,16578.0,16576.0,0.0597033]
[1672577301190,0.3007,16578.0,16576.0,0.0497033]
[1672577301401,0.3007,16578.0,16576.0,0.0607033]
[1672577301828,0.05,16579.0,16576.0,0.0497033]
[1672577302034,0.3007,16578.0,16576.0,0.0597033]
[1672577305510,0.3507,16579.0,16576.0,0.0597033]
[1672577306350,0.3507,16579.0,16576.0,0.05946556]
[1672577306879,0.3507,16579.0,16576.0,0.06046556]
[1672577310132,0.3507,16579.0,16576.0,0.36116556]
[1672577312966,0.05,16579.0,16576.0,0.06046556]
[1672577313175,0.3507,16579.0,16576.0,0.06046556]
[1672577316964,0.05,16579.0,16576.0,0.06046556]
[1672577317179,0.3507,16579.0,16576.0,0.06046556]
[1672577319897,0.05,16579.0,16576.0,0.36116556]
[1672577321374,0.05,16579.0,16576.0,0.06046556]
[1672577321584,0.05,16579.0,16576.0,0.36116556]
[1672577323271,0.05,16579.0,16576.0,0.35016556]
[1672577323482,0.05,16579.0,16576.0,0.36116556]
[1672577325473,0.05,16579.0,16577.0,0.3007]
[1672577325792,0.05,16579.0,16578.0,0.05]
[1672577327156,0.05,16579.0,16578.0,0.06]
[1672577330426,0.05,16579.0,16578.0,0.05400001]
[1672577332320,0.05,16579.0,16578.0,0.04860001]
[1672577334529,0.05,16579.0,16578.0,0.04374001]
[1672577336422,0.05,16579.0,16578.0,0.03936601]
[1672577344414,0.05,16579.0,16578.0,0.01]
[1672577345350,0.05,16579.0,16578.0,0.00900001]
[1672577347463,0.05,16579.0,16578.0,0.00810001]
[1672577348824,0.05,16579.0,16578.0,0.05810001]
[1672577349451,0.05,16579.0,16578.0,0.05229001]
[1672577351348,0.05,16579.0,16578.0,0.04706101]
[1672577367951,0.05,16579.0,16578.0,0.04235491]
[1672577369851,0.05,16579.0,16578.0,0.03811942]
[1672577371952,0.05,16579.0,16578.0,0.03430748]
[1672577374052,0.05,16579.0,16578.0,0.03087674]
[1672577384449,0.05,16579.0,16578.0,0.02778907]
[1672577388233,0.05,16579.0,16578.0,0.02501017]
[1672577433339,0.05,16579.0,16577.0,0.29819899]
[1672577434071,0.05,16579.0,16576.0,0.04946556]
[1672577434283,0.05,16579.0,16576.0,0.35016556]
[1672577434496,0.05,16579.0,16576.0,0.04946556]
[1672577434695,0.059,16579.0,16577.0,0.01]
[1672577435753,0.059,16579.0,16576.0,0.36016556]
[1672577436066,0.3597,16579.0,16576.0,0.36016556]
[1672577436696,0.059,16579.0,16576.0,0.36016556]
[1672577436907,0.059,16579.0,16577.0,0.01]
[1672577437226,0.05,16579.0,16576.0,0.35016556]
[1672577437433,0.059,16579.0,16576.0,0.36016556]
[1672577437641,0.05,16579.0,16576.0,0.35016556]
[1672577437855,0.059,16579.0,16577.0,0.01]
[1672577438378,0.059,16579.0,16576.0,0.36016556]
[1672577439106,0.3597,16579.0,16576.0,0.36016556]
[1672577439639,0.059,16579.0,16577.0,0.01]
[1672577439855,0.3597,16579.0,16576.0,0.35016556]
[1672577440059,0.3597,16579.0,16576.0,0.36016556]
[1672577440585,0.3597,16579.0,16577.0,0.01]
[1672577440795,0.059,16579.0,16577.0,0.01]
[1672577441005,0.3597,16579.0,16576.0,0.36016556]
[1672577441630,0.3597,16579.0,16577.0,0.01]
[1672577442679,0.3597,16579.0,16576.0,0.36016556]
[1672577443213,0.3597,16579.0,16577.0,0.01]
[1672577443649,0.3507,16579.0,16576.0,0.35016556]
[1672577443852,0.3597,16579.0,16576.0,0.36016556]
[1672577444167,0.3507,16579.0,16576.0,0.35016556]
[1672577444363,0.3597,16579.0,16577.0,0.01]
[1672577445530,0.3597,16579.0,16576.0,0.36016556]
[1672577445953,0.3597,16579.0,16577.0,0.01]
[1672577446361,0.3507,16579.0,16576.0,0.35016556]
[1672577446576,0.3597,16579.0,16576.0,0.36016556]
[1672577447203,0.3597,16579.0,16577.0,0.01]
[1672577448370,0.3507,16579.0,16576.0,0.35016556]
[1672577448584,0.059,16579.0,16576.0,0.36016556]
[1672577448793,0.059,16579.0,16576.0,0.35016556]
[1672577449001,0.059,16579.0,16577.0,0.01]
[1672577449422,0.059,16579.0,16576.0,0.05946556]
[1672577449625,0.3597,16579.0,16576.0,0.36016556]
[1672577449835,0.05,16579.0,16576.0,0.04946556]
[1672577450052,0.3597,16579.0,16577.0,0.01]
[1672577450476,0.3597,16579.0,16576.0,0.36016556]
[1672577450891,0.059,16579.0,16576.0,0.05946556]
[1672577451101,0.3597,16579.0,16576.0,0.36016556]
[1672577451519,0.3597,16579.0,16577.0,0.01]
[1672577451939,0.3597,16579.0,16576.0,0.35016556]
[1672577451940,0.3507,16579.0,16576.0,0.35016556]
[1672577452153,0.3597,16579.0,16576.0,0.36016556]
[1672577452361,0.3507,16579.0,16576.0,0.35016556]
[1672577452573,0.3597,16579.0,16577.0,0.01]
[1672577453109,0.3597,16579.0,16576.0,0.36016556]
[1672577454249,0.3597,16579.0,16577.0,0.01]
[1672577454675,0.3507,16579.0,16576.0,0.35016556]
[1672577454883,0.3597,16579.0,16576.0,0.36016556]
[1672577455100,0.3507,16579.0,16576.0,0.35016556]
[1672577455308,0.3607,16579.0,16577.0,0.01]
[1672577455731,0.3607,16579.0,16576.0,0.36016556]
[1672577456143,0.3607,16579.0,16576.0,0.35016556]
[1672577456144,0.3507,16579.0,16576.0,0.35016556]
[1672577456351,0.3607,16579.0,16577.0,0.011]
[1672577456988,0.06,16579.0,16577.0,0.011]
[1672577457412,0.3607,16579.0,16576.0,0.36116556]
[1672577458032,0.05,16579.0,16576.0,0.04946556]
[1672577458254,0.3607,16579.0,16577.0,0.011]
[1672577458665,0.3607,16579.0,16576.0,0.36116556]
[1672577459090,0.3507,16579.0,16576.0,0.35016556]
[1672577459304,0.3607,16579.0,16577.0,0.011]
[1672577459726,0.06,16579.0,16577.0,0.011]
[1672577459935,0.3607,16579.0,16577.0,0.011]
[1672577460250,0.3507,16579.0,16576.0,0.35016556]
[1672577460453,0.3607,16579.0,16576.0,0.36116556]
[1672577460663,0.3607,16579.0,16576.0,0.35016556]
[1672577460876,0.06,16579.0,16577.0,0.011]
[1672577461088,0.3607,16579.0,16577.0,0.011]
[1672577461292,0.3507,16579.0,16576.0,0.36116556]
[1672577461507,0.3607,16579.0,16576.0,0.36116556]
[1672577461822,0.3607,16579.0,16577.0,0.011]
[1672577463186,0.3607,16579.0,16576.0,0.36116556]
[1672577463609,0.3507,16579.0,16576.0,0.35016556]
[1672577463818,0.3607,16579.0,16577.0,0.011]
[1672577464028,0.3507,16579.0,16576.0,0.35016556]
[1672577464243,0.3607,16579.0,16576.0,0.36116556]
[1672577464659,0.3607,16579.0,16577.0,0.011]
[1672577465087,0.3507,16579.0,16576.0,0.35016556]
[1672577465294,0.3607,16579.0,16576.0,0.36116556]
[1672577466341,0.3607,16579.0,16577.0,0.011]
[1672577466768,0.3507,16579.0,16576.0,0.35016556]
[1672577467083,0.06,16579.0,16576.0,0.06046556]
[1672577467288,0.3507,16579.0,16576.0,0.35016556]
[1672577467608,0.3607,16579.0,16577.0,0.011]
[1672577467814,0.3507,16579.0,16576.0,0.35016556]
[1672577468132,0.3607,16579.0,16576.0,0.36116556]
[1672577469603,0.06,16579.0,16576.0,0.06046556]
[1672577469804,0.3607,16579.0,16576.0,0.36116556]
[1672577471074,0.06,16579.0,16576.0,0.06046556]
[1672577471285,0.3607,16579.0,16576.0,0.36116556]
[1672577472119,0.06,16579.0,16576.0,0.06046556]
[1672577472327,0.3607,16579.0,16576.0,0.36116556]
[1672577486738,0.06,16579.0,16576.0,0.06046556]
[1672577486941,0.3607,16579.0,16576.0,0.36116556]
[1672577493035,0.06,16579.0,16576.0,0.06046556]
[1672577493250,0.3607,16579.0,16576.0,0.36116556]
[1672577500091,0.3607,16579.0,16576.0,0.36107981]
[1672577501033,0.06,16579.0,16576.0,0.06037981]
[1672577501239,0.3607,16579.0,16576.0,0.36107981]
[1672577502605,0.06,16579.0,16576.0,0.06037981]
[1672577502922,0.3607,16579.0,16576.0,0.36107981]
[1672577510071,0.3607,16579.0,16576.0,0.06037981]
[1672577511131,0.06,16579.0,16576.0,0.06037981]
[1672577511340,0.3607,16579.0,16576.0,0.06037981]
[1672577517020,0.3607,16579.0,16576.0,0.011]
[1672577517231,0.3607,16579.0,16576.0,0.061]
[1672577518071,0.3607,16579.0,16576.0,0.05490001]
[1672577520288,0.3607,16579.0,16576.0,0.04941001]
[1672577527335,0.3607,16579.0,16576.0,0.35011001]
[1672577533633,0.06,16579.0,16576.0,0.04941001]
[1672577533849,0.3607,16579.0,16576.0,0.35011001]
[1672577540260,0.06,16579.0,16577.0,0.3007]
[1672577541625,0.07,16579.0,16577.0,0.3107]
[1672577547932,0.07,16579.0,16577.0,0.01]
[1672577548146,0.3707,16579.0,16577.0,0.05900001]
[1672577549829,0.07,16579.0,16577.0,0.05900001]
[1672577550242,0.3707,16579.0,16577.0,0.05310001]
[1672577550450,0.07,16579.0,16577.0,0.05310001]
[1672577550870,0.3707,16579.0,16577.0,0.05310001]
[1672577551085,0.07,16579.0,16577.0,0.05310001]
[1672577551298,0.3707,16579.0,16577.0,0.05310001]
[1672577552239,0.3707,16579.0,16576.0,0.3007]
[1672577553298,0.3797,16579.0,16576.0,0.3107]
[1672577554455,0.3797,16579.0,16577.0,0.05]
[1672577554662,0.3797,16579.0,16577.0,0.04500001]
[1672577555494,0.3507,16579.0,16577.0,0.04500001]
[1672577555708,0.3797,16579.0,16577.0,0.05500001]
[1672577558448,0.079,16579.0,16577.0,0.05500001]
[1672577558659,0.3797,16579.0,16577.0,0.05500001]
[1672577561605,0.079,16579.0,16577.0,0.05500001]
[1672577561920,0.3797,16579.0,16577.0,0.05500001]
[1672577562538,0.079,16579.0,16577.0,0.05500001]
[1672577562750,0.3797,16579.0,16577.0,0.05500001]
[1672577562964,0.079,16579.0,16577.0,0.05500001]
[1672577563175,0.3797,16579.0,16577.0,0.04950001]
[1672577565177,0.3797,16579.0,16577.0,0.04455001]
[1672577565373,0.079,16579.0,16577.0,0.04455001]
[1672577565687,0.3797,16579.0,16577.0,0.04455001]
[1672577566016,0.079,16579.0,16577.0,0.04455001]
[1672577566330,0.3797,16579.0,16577.0,0.04455001]
[1672577567162,0.3797,16579.0,16577.0,0.04009501]
[1672577568741,0.079,16579.0,16577.0,0.34079501]
[1672577569278,0.079,16579.0,16577.0,0.04009501]
[1672577569477,0.079,16579.0,16577.0,0.34079501]
[1672577569685,0.079,16579.0,16577.0,0.30671551]
[1672577571261,0.3797,16579.0,16577.0,0.00601551]
[1672577571576,0.3797,16579.0,16577.0,0.05601551]
[1672577573460,0.079,16579.0,16577.0,0.05601551]
[1672577573675,0.3797,16579.0,16577.0,0.05601551]
[1672577575575,0.079,16579.0,16577.0,0.05601551]
[1672577575790,0.3797,16579.0,16577.0,0.05601551]
[1672577576317,0.079,16579.0,16577.0,0.05601551]
[1672577576528,0.3797,16579.0,16577.0,0.05601551]
[1672577581669,0.079,16579.0,16577.0,0.35671551]
[1672577582933,0.079,16579.0,16577.0,0.05601551]
[1672577584400,0.079,16579.0,16577.0,0.35671551]
[1672577589350,0.079,16579.0,16577.0,0.05601551]
[1672577589562,0.079,16579.0,16577.0,0.35671551]
[1672577592394,0.079,16579.0,16577.0,0.05601551]
[1672577592611,0.079,16579.0,16577.0,0.35671551]
[1672577593983,0.029,16579.0,16577.0,0.35671551]
[1672577599760,0.029,16579.0,16577.0,0.05601551]
[1672577600176,0.029,16579.0,16578.0,0.3007]
[1672577601018,0.05,16580.0,16578.0,0.3007]
[1672577601231,0.033,16579.0,16578.0,0.3107]
[1672577602707,0.033,16579.0,16578.0,0.01]
[1672577602920,0.033,16579.0,16578.0,0.3107]
[1672577603538,0.033,16579.0,16578.0,0.01]
[1672577604178,0.033,16579.0,16578.0,0.3107]
[1672577604913,0.033,16579.0,16578.0,0.01]
[1672577605128,0.033,16579.0,16578.0,0.3107]
[1672577613009,0.033,16579.0,16578.0,0.01]
[1672577619956,0.033,16579.0,16578.0,0.00982866]
[1672577620584,0.033,16579.0,16578.0,0.31052866]
[1672577628038,0.033,16579.0,16578.0,0.00982866]
[1672577628253,0.033,16579.0,16578.0,0.31052866]
[1672577629721,0.033,16579.0,16578.0,0.00982866]
[1672577630144,0.033,16579.0,16578.0,0.31052866]
[1672577630878,0.033,16579.0,16578.0,0.00982866]
[1672577631087,0.033,16579.0,16578.0,0.31052866]
[1672577633519,0.033,16579.0,16578.0,0.00982866]
[1672577633728,0.033,16579.0,16578.0,0.31052866]
[1672577633930,0.033,16579.0,16578.0,0.00982866]
[1672577634457,0.033,16579.0,16578.0,0.31052866]
[1672577634661,0.033,16579.0,16578.0,0.00982866]
[1672577634878,0.033,16579.0,16578.0,0.31052866]
[1672577635085,0.033,16579.0,16578.0,0.00982866]
[1672577635296,0.033,16579.0,16578.0,0.31052866]
[1672577637412,0.033,16579.0,16578.0,0.00982866]
[1672577637609,0.033,16579.0,16578.0,0.31052866]
[1672577641597,0.033,16579.0,16578.0,0.00982866]
[1672577641812,0.033,16579.0,16578.0,0.31052866]
[1672577646867,0.033,16579.0,16578.0,0.00982866]
[1672577647179,0.033,16579.0,16578.0,0.31052866]
[1672577648225,0.033,16579.0,16578.0,0.00982866]
[1672577648541,0.033,16579.0,16578.0,0.31052866]
[1672577650011,0.033,16579.0,16578.0,0.00982866]
[1672577650216,0.033,16579.0,16578.0,0.31052866]
[1672577654211,0.033,16579.0,16578.0,0.00982866]
[1672577654419,0.033,16579.0,16578.0,0.31052866]
[1672577654841,0.033,16579.0,16578.0,0.00982866]
[1672577655048,0.033,16579.0,16578.0,0.31052866]
[1672577658943,0.033,16579.0,16578.0,0.00982866]
[1672577659148,0.033,16579.0,16578.0,0.31052866]
[1672577660210,0.033,16579.0,16578.0,0.00982866]
[1672577660420,0.033,16579.0,16578.0,0.31052866]
[1672577661997,0.033,16579.0,16578.0,0.00982866]
[1672577662204,0.033,16579.0,16578.0,0.31052866]
[1672577666939,0.033,16579.0,16578.0,0.00982866]
[1672577667149,0.033,16579.0,16578.0,0.31052866]
[1672577667883,0.033,16579.0,16578.0,0.00982866]
[1672577668094,0.033,16579.0,16578.0,0.31052866]
[1672577669355,0.033,16579.0,16578.0,0.00963694]
[1672577669566,0.033,16579.0,16578.0,0.31033694]
[1672577669991,0.033,16579.0,16578.0,0.00963694]
[1672577670620,0.033,16579.0,16578.0,0.31033694]
[1672577680394,0.03280941,16579.0,16578.0,0.31033694]
[1672577683028,0.03280941,16579.0,16578.0,0.00963694]
[1672577683552,0.03280941,16579.0,16578.0,0.31033694]
[1672577684920,0.03280941,16579.0,16578.0,0.00963694]
[1672577685136,0.03280941,16579.0,16578.0,0.31033694]
[1672577688173,0.03280941,16579.0,16578.0,0.27930325]
[1672577690169,0.03280941,16579.0,16578.0,0.25137293]
[1672577691008,0.03280941,16579.0,16577.0,0.05]
[1672577691436,0.33350941,16579.0,16577.0,0.05]
[1672577691648,0.05,16578.0,16577.0,0.05]
[1672577692066,0.05,16578.0,16577.0,0.059]
[1672577693333,0.05,16578.0,16577.0,0.05]
[1672577693540,0.092,16578.0,16577.0,0.059]
[1672577702613,0.042,16578.0,16577.0,0.059]
[1672577703030,0.092,16578.0,16577.0,0.059]